[Event "FIDE Zonal 2.5 Open 2019"]
[Site "Montevideo"]
[Date "2019.04.16"]
[Round "6.19"]
[White "Belmes, Martin"]
[Black "Moccero, Eduardo"]
[Result "1-0"]
[ECO "B00"]
[WhiteElo "2081"]
[BlackElo "1939"]
[Annotator "NA RC"]
[PlyCount "177"]
[EventDate "2019.04.13"]
[EventType "swiss"]
[EventCountry "URU"]
[SourceTitle "playchess.com"]
[Source "ChessBase"]
[SourceQuality "1"]
[TimeControl "40/5400+30:1800+30"]

{[%evp 25,177,-59,-53,-42,-37,-64,-52,32767,-13,-22,-8,-7,-15,-10,-16,-25,-12,-24,-22,-42,10,9,4,-20,-6,-3,-18,-35,-26,-23,0,1,74,-3,193,-8,175,212,184,224,230,285,257,32767,32767,87,94,32767,87,-20,-17,-18,-7,32767,152,69,74,12,32767,32767,12,16,16,16,16,16,32767,12,32767,32767,12,32767,32767,32767,32767,32767,16,12,32767,32767,32767,16,16,16,32767,32767,15,16,16,16,16,16,12,16,12,15,12,12,15,16,32767,32767,32767,32767,17,17,17,17,18,18,18,32767,32767,18,18,18,18,17,17,16,16,19,32767,32767,32767,32767,32767,32767,32767,32767,32767,32767,32767,32767,32767,32767,32767,32767,32767,32767,32767,32767,32767,32767,28,32,29992,20,29993,32767,29994,32767,29995,29988]} 1. e4 {[%emt 0:00:39]} Nc6 {[%emt 0:00:00]} 2. Nf3 {[%emt 0:00:05]} d5 {[%emt 0:00:00]} 3. exd5 {[%emt 0:00:15]} Qxd5 {[%emt 0:00:00]} 4. Nc3 {[%emt 0:00:05]} (4. d4 e5 5. Nc3 Bb4 6. a3 Bxc3+ 7. bxc3 e4 8. Nd2 Nf6 9. Nc4 Bg4 10. Qd2 Bh5 11. Qg5 Qxg5 12. Bxg5 Nd5 13. Bd2 {0-1 (54) Leko,P (2723)-Bacrot,E (2718) Beijing 2014}) 4... Qf5 {[%emt 0:00:05]} 5. Nb5 {[%emt 0:03:21]} Qd7 {[%emt 0:04:56]} 6. d4 {[%emt 0:00:32] B00: Queen's Fianchetto Defence, Nimzowitsch Defence} a6 {[%emt 0:00:33]} 7. Na3 $146 {[%emt 0:01:21]} ({Predecessor:} 7. Nc3 e6 8. Ne4 Be7 9. Bf4 Nf6 10. Nxf6+ Bxf6 11. c3 Qd8 {½-½ (22) Pawlowicz,K (1592)-Wulf,A (1778) Binz 2014}) 7... Nf6 {[%emt 0:01:10]} 8. c3 {[%emt 0:01:24]} e5 {[%emt 0:02:10]} 9. dxe5 {[%emt 0:00:57]} Qxd1+ {[%emt 0:00:37]} 10. Kxd1 {[%emt 0:00:04]} Ng4 {[%emt 0:00:48]} 11. Ke1 {[%emt 0:00:58]} Ngxe5 {[%emt 0:00:57]} 12. Nxe5 {[%emt 0:02:30]} Nxe5 {[%emt 0:00:13]} 13. Nc2 {[%emt 0:00:17]} Bd6 {[%emt 0:02:32]} 14. f3 {[%emt 0:03:16]} O-O {[%emt 0:02:24]} 15. Be3 {[%emt 0:00:10]} Re8 {[%emt 0:04:06]} 16. Kf2 {[%emt 0:00:18]} Bd7 {[%emt 0:04:01]} 17. Rd1 {[%emt 0:00:43]} Rad8 {[%emt 0:02:31]} 18. Be2 {[%emt 0:00:22]} h6 {[%emt 0:04:28]} 19. h3 {[%emt 0:00:48]} Be6 {[%emt 0:05:45]} 20. b3 {[%emt 0:00:33]} Ng6 {[%emt 0:02:15]} 21. Nd4 {[%emt 0:03:02]} Bc8 {[%emt 0:04:11]} 22. Bd3 {[%emt 0:03:29]} Bg3+ {[%emt 0:06:28]} 23. Kxg3 {[%emt 0:00:53]} Rxe3 {[%emt 0:00:29]} 24. Kf2 {[%emt 0:00:12]} Rxd3 {[%emt 0:01:21]} 25. Rxd3 {[%emt 0:00:03]} c5 {[%emt 0:00:04]} 26. Rhd1 {[%emt 0:02:56]} cxd4 {[%emt 0:00:10]} 27. Rxd4 {[%emt 0:00:03]} Rxd4 {[%emt 0:00:50]} 28. Rxd4 {[%emt 0:00:05]} Be6 {[%emt 0:04:00]} (28... Nf8 $11) 29. c4 {[%emt 0:00:11]} (29. Rd8+ $14 Kh7 30. c4) 29... Ne5 $2 {[%emt 0:01:58]} (29... Ne7 $11) 30. Rd8+ {[%emt 0:02:21]} Kh7 {[%emt 0:00:05]} 31. Rb8 {[%emt 0:01:23]} Nd3+ {[%emt 0:03:37]} 32. Ke3 {[%emt 0:00:11]} Nc1 {[%emt 0:00:31]} 33. Rxb7 {[%emt 0:00:11]} Nxa2 {[%emt 0:00:11]} 34. Kd2 {[%emt 0:00:46]} Kg6 {[%emt 0:00:57]} 35. c5 $2 {[%emt 0:01:36]} (35. Rb6 $18 {has better winning chances.} a5 36. Ra6) 35... Kf5 {[%emt 0:01:36]} 36. c6 {[%emt 0:01:49]} Ke5 {[%emt 0:02:15] [#]} 37. f4+ {[%emt 0:06:50]} (37. c7 $1 $16 Kd6 {[#]} 38. c8=B $1 {[%mdl 576] Deflection} Bxc8 39. Rxf7) 37... Kd6 {[%emt 0:01:10]} ({Not} 37... Kxf4 $2 38. Re7 $18) 38. f5 {[%emt 0:00:11]} Bd5 {[%emt 0:00:42]} 39. Ra7 {[%emt 0:00:51]} Bxc6 $2 {[%emt 0:02:00] [#]} (39... Nb4 $11 40. c7 Kd7) 40. Rxf7 {[%emt 0:00:09]} ({White should try} 40. g4 $1 $16) 40... Bxg2 {[%emt 0:00:58] [#]} 41. Rxg7 {[%emt 0:31:04]} (41. f6 $1 $16 {[%cal Rf6g7]} gxf6 42. Rxf6+ Ke5 43. Rxa6) 41... Bxh3 {[%emt 0:30:50]} 42. f6 {[%emt 0:07:08]} Ke6 $1 {[%emt 0:02:48]} 43. Ra7 {[%emt 0:00:17]} Kxf6 {[%emt 0:01:21]} 44. Rxa6+ {[%emt 0:00:04] Double Attack} Be6 {[%emt 0:00:08]} 45. Rxa2 {[%emt 0:01:05]} Bxb3 {[%emt 0:00:10]} 46. Rb2 {[%emt 0:00:07]} Be6 {[%emt 0:01:52]} 47. Ke3 {[%emt 0:00:05]} Bg4 {[%emt 0:01:11]} 48. Kf4 {[%emt 0:00:15]} h5 {[%emt 0:00:17]} 49. Rb6+ {[%emt 0:00:05]} Ke7 {[%emt 0:00:28]} 50. Ke5 {[%emt 0:00:24]} Kd7 {[%emt 0:01:04]} 51. Rh6 {[%emt 0:00:08]} Bf3 {[%emt 0:00:58]} 52. Rf6 {[%emt 0:00:14]} Bg4 {[%emt 0:00:13]} 53. Rf4 {[%emt 0:00:15]} Ke7 {[%emt 0:00:25]} 54. Rb4 {[%emt 0:00:46]} Kd7 {[%emt 0:00:29]} 55. Kf6 {[%emt 0:00:36]} Kd6 {[%emt 0:00:28]} 56. Rd4+ {[%emt 0:00:13]} Kc5 {[%emt 0:00:47]} 57. Rd2 {[%emt 0:00:54]} Kc6 {[%emt 0:00:47]} 58. Ke5 {[%emt 0:00:33]} Kc7 {[%emt 0:01:27]} 59. Rd6 {[%emt 0:00:06]} Bf3 {[%emt 0:00:55]} 60. Rf6 {[%emt 0:00:16]} Bg4 {[%emt 0:00:10]} 61. Kd5 {[%emt 0:00:05]} Be2 {[%emt 0:02:07]} 62. Rd6 {[%emt 0:01:16]} Bf3+ {[%emt 0:00:39]} 63. Kc5 {[%emt 0:00:09]} Bg4 {[%emt 0:00:12]} 64. Rd3 {[%emt 0:00:05]} Kb7 {[%emt 0:00:41]} 65. Re3 {[%emt 0:00:19]} Kc7 {[%emt 0:04:19]} 66. Re7+ {[%emt 0:00:06]} Kd8 {[%emt 0:00:04]} 67. Kd6 {[%emt 0:00:10]} Kc8 {[%emt 0:00:07]} 68. Rf7 {[%emt 0:01:02]} Be2 {[%emt 0:01:49]} 69. Rf2 {[%emt 0:07:43]} Bg4 {[%emt 0:00:25]} 70. Rb2 {[%emt 0:00:08]} Bf3 {[%emt 0:03:07]} 71. Rc2+ {[%emt 0:00:09]} Kb7 {[%emt 0:01:03]} 72. Rc7+ {[%emt 0:00:49]} Kb6 {[%emt 0:01:09]} 73. Rc3 {[%emt 0:00:34]} Bg4 {[%emt 0:01:31]} 74. Rb3+ {[%emt 0:00:03]} Ka5 {[%emt 0:00:38]} 75. Kc5 {[%emt 0:00:06]} Ka4 {[%emt 0:00:34]} 76. Rb8 {[%emt 0:00:12]} Bf3 {[%emt 0:01:40]} 77. Rb4+ {[%emt 0:00:07]} Ka3 {[%emt 0:01:26]} 78. Kc4 {[%emt 0:00:14]} Bg4 {[%emt 0:01:23]} 79. Kc3 {[%emt 0:00:03]} Ka2 {[%emt 0:01:37]} 80. Rb5 {[%emt 0:00:52]} Bf3 {[%emt 0:02:45]} 81. Rf5 {[%emt 0:00:55]} Bg4 {[%emt 0:00:43]} 82. Rf1 {[%emt 0:00:05]} Bd7 {[%emt 0:05:45]} 83. Rf2+ {[%emt 0:00:28]} Kb1 {[%emt 0:00:17]} 84. Rb2+ {[%emt 0:00:39]} Kc1 {[%emt 0:01:16]} 85. Rh2 {[%emt 0:00:37]} Bg4 $2 {[%emt 0:02:07]} (85... Bc6 $11) 86. Rh1+ {[%emt 0:00:18]} Bd1 {[%emt 0:00:08]} 87. Kd3 {[%emt 0:00:15]} h4 {[%emt 0:00:56]} 88. Kc3 {[%emt 0:00:04]} h3 {[%emt 0:01:24]} 89. Kd3 {[%emt 0:00:05]} 1-0

[Event "FIDE Zonal 2.5 Open 2019"]
[Site "Montevideo"]
[Date "2019.04.16"]
[Round "6.21"]
[White "Campora, Edgardo"]
[Black "Lanzilotta, Marcelo"]
[Result "0-1"]
[ECO "B50"]
[WhiteElo "1705"]
[BlackElo "1972"]
[Annotator "NA RC"]
[PlyCount "126"]
[EventDate "2019.04.13"]
[EventType "swiss"]
[EventCountry "URU"]
[SourceTitle "playchess.com"]
[Source "ChessBase"]
[SourceQuality "1"]
[TimeControl "40/5400+30:1800+30"]

{[%evp 8,126,0,-6,32767,32767,32767,-8,7,6,13,-8,0,-26,-16,-10,-22,-12,-4,0,0,-22,-8,-48,32767,32767,-39,32767,-39,32767,32767,-108,-83,-112,-33,-105,32767,32767,-44,-71,-52,-101,-97,-100,-111,32767,-88,-109,-120,-130,-135,-138,32767,32767,32767,32767,32767,32767,32767,32767,32767,32767,32767,32767,32767,32767,32767,-56,32767,-69,-81,-111,-105,32767,32767,32767,32767,-84,-89,-195,-210,-210,-199,-203,-212,-208,-227,-217,-221,-244,-246,-237,-273,-252,-224,-260,-147,-222,-241,-249,-303,-303,-445,-548,-413,-948,-637,-467,-699,-568,-1014,-982,-1038,-1098,-1260,-1141,-730,-808,-1077,-1218,-1316]} 1. e4 {[%emt 0:00:00]} c5 {[%emt 0:16:25]} 2. Nf3 {[%emt 0:00:25]} d6 {[%emt 0:00:12]} 3. c3 {[%emt 0:01:01]} Nf6 {[%emt 0:01:59]} 4. h3 {[%emt 0:00:06]} Nc6 {[%emt 0:00:08]} 5. Bd3 {[%emt 0:00:07] LiveBook: 589 Games} d5 {[%emt 0:00:51]} 6. exd5 {[%emt 0:01:31] B50: Sicilian: 2...d6, Miscellaneous} (6. e5 Nd7 7. Qe2 e6 8. O-O Qc7 9. Bb5 a6 10. Bxc6 Qxc6 11. d4 Be7 12. Bg5 Bxg5 13. Nxg5 h6 14. Nf3 b6 15. Nbd2 {½-½ (29) Safarli,E (2676)-Kryakvin,D (2595) Hoogeveen 2018}) 6... Qxd5 {[%emt 0:00:05]} 7. Bc2 {[%emt 0:03:55]} b6 $146 {[%emt 0:02:58]} ({Predecessor:} 7... g6 8. O-O Bg7 9. d3 Bf5 10. Be3 e5 11. Qe2 O-O 12. Nbd2 Rad8 13. Nb3 b6 {0-1 (54) Sacharewicz,K (1833)-Swicarz,M (2331) Litomysl 2018}) 8. O-O {[%emt 0:10:04]} Bb7 {[%emt 0:00:11]} 9. Qe2 {[%emt 0:01:42]} e6 {[%emt 0:03:33]} 10. Na3 {[%emt 0:04:39]} Bd6 {[%emt 0:07:24]} 11. Nc4 {[%emt 0:00:33]} Bc7 {[%emt 0:01:41]} 12. Ne3 {[%emt 0:10:51]} Qd6 {[%emt 0:06:16]} 13. Nc4 {[%emt 0:12:55]} Qd5 {[%emt 0:00:13]} 14. Ne3 {[%emt 0:00:09]} Qh5 15. Re1 {[%emt 0:07:11]} O-O-O {[%emt 0:01:27]} 16. Nf1 {[%emt 0:06:07]} h6 {[%emt 0:05:18]} 17. Ng3 {[%emt 0:01:25]} Qd5 {[%emt 0:00:56]} 18. Bb3 {[%emt 0:02:53]} Qd6 {[%emt 0:01:20]} 19. Bc4 {[%emt 0:03:53]} Kb8 {[%emt 0:03:35]} 20. Ba6 {[%emt 0:01:19]} Ba8 {[%emt 0:00:05]} (20... e5 $17 21. Bxb7 Kxb7) 21. a4 {[%emt 0:02:02]} Nd5 {[%emt 0:02:21]} 22. d4 {[%emt 0:07:27]} cxd4 {[%emt 0:04:59]} 23. Ne4 {[%emt 0:05:50]} Nf4 {[%emt 0:11:23]} 24. Nxd6 {[%emt 0:08:16]} (24. Qf1 $11 Qd5 25. a5) 24... Nxe2+ {[%emt 0:00:16]} 25. Rxe2 {[%emt 0:00:02]} Rxd6 {[%emt 0:01:31]} ({Don't play} 25... Bxd6 26. Nxd4 Nxd4 27. cxd4 $15) 26. Bf4 {[%emt 0:00:30]} Rd7 {[%emt 0:01:28]} 27. Bxc7+ {[%emt 0:00:52]} Kxc7 {[%emt 0:00:11]} 28. Nxd4 {[%emt 0:00:13]} Nxd4 {[%emt 0:00:31]} 29. cxd4 {[%emt 0:00:04]} Rhd8 {[%emt 0:07:15]} 30. Rc2+ {[%emt 0:00:29]} Kb8 {[%emt 0:00:01]} 31. Rac1 {[%emt 0:00:29]} Bb7 {[%emt 0:00:02]} 32. Bxb7 {[%emt 0:02:19]} Rxb7 {[%emt 0:00:40]} 33. Rd2 {[%emt 0:04:15]} Rbd7 {[%emt 0:00:07]} 34. Rcd1 {[%emt 0:00:07]} Rd5 {[%emt 0:03:03]} 35. f4 {[%emt 0:00:30]} f6 {[%emt 0:00:02]} 36. Kf2 {[%emt 0:00:05]} Kb7 {[%emt 0:03:24]} 37. b4 {[%emt 0:02:09]} Rc8 {[%emt 0:02:35]} 38. Re1 {[%emt 0:01:14]} Rd6 {[%emt 0:02:01]} 39. Rb1 {[%emt 0:00:02]} (39. d5 $15) 39... Rc4 {[%emt 0:01:00]} 40. Ke3 {[%emt 0:00:06]} Rc3+ {[%emt 0:00:05]} 41. Rd3 {[%emt 0:30:07]} Rc2 {[%emt 0:30:03]} 42. g4 {[%emt 0:00:00]} Kc6 {[%emt 0:00:00]} 43. Rd2 {[%emt 0:00:00]} (43. Ke4 $17 {was called for.}) 43... Rxd2 {[%emt 0:00:00]} 44. Kxd2 {[%emt 0:00:00]} Rxd4+ {[%emt 0:00:00]} 45. Ke3 {[%emt 0:00:00]} Kd5 {[%emt 0:00:00]} 46. a5 {[%emt 0:00:00]} Re4+ {[%emt 0:00:00]} 47. Kf3 {[%emt 0:00:00]} g5 {[%emt 0:00:00]} 48. fxg5 {[%emt 0:00:00]} hxg5 {[%emt 0:00:00]} 49. axb6 {[%emt 0:00:00]} axb6 {[%emt 0:00:00]} 50. b5 {[%emt 0:00:00]} Rf4+ {[%emt 0:00:00]} 51. Kg3 {[%emt 0:00:16]} Kc5 {[%emt 0:00:00]} (51... f5 $19 52. Rb2 Ke5 53. gxf5 exf5) 52. h4 {[%emt 0:00:34] [#]} f5 $1 {[%emt 0:00:00]} 53. gxf5 {[%emt 0:01:14]} Rxh4 {[%emt 0:00:00]} ({Weaker is} 53... exf5 54. hxg5 Rg4+ 55. Kf3 $17) 54. fxe6 {[%emt 0:00:39]} Re4 {[%emt 0:00:00]} 55. Rc1+ {[%emt 0:04:24]} (55. Rf1 $142 Kxb5 56. Rf6) 55... Kxb5 {[%emt 0:00:00]} 56. Rd1 {[%emt 0:00:06]} Kc5 {[%emt 0:00:00]} 57. Rc1+ {[%emt 0:00:13]} Kd6 {[%emt 0:00:00]} 58. Rb1 {[%emt 0:00:10]} Kc6 {[%emt 0:00:00]} 59. Rc1+ {[%emt 0:00:10]} Kb7 {[%emt 0:00:00]} 60. Rf1 {[%emt 0:03:31]} Rxe6 {[%emt 0:00:00]} 61. Rf5 {[%emt 0:00:41]} Rg6 {[%emt 0:00:00]} 62. Kg4 {[%emt 0:00:10]} Ka6 $19 {[%emt 0:00:00]} 63. Kh5 {[%emt 0:00:34]} Rg8 {[%emt 0:00:00]} 0-1

[Event "FIDE Zonal 2.5 Open 2019"]
[Site "Montevideo"]
[Date "2019.04.16"]
[Round "6.22"]
[White "Avedisian, Alexander"]
[Black "Manteiga, Franco"]
[Result "0-1"]
[ECO "A06"]
[WhiteElo "1898"]
[BlackElo "1684"]
[Annotator "NA RC"]
[PlyCount "68"]
[EventDate "2019.04.13"]
[EventType "swiss"]
[EventCountry "URU"]
[SourceTitle "playchess.com"]
[Source "ChessBase"]
[SourceQuality "1"]
[TimeControl "40/5400+30:1800+30"]

{[%evp 8,58,9,7,32767,32767,32767,32767,32767,32767,32767,18,0,-6,-3,7,20,8,36,13,17,11,41,6,70,69,32767,32767,117,116,110,32767,108,104,141,104,32767,-20,-3,-208,-205,32767,-196,32767,32767,-456,-458,32767,-495,-492,-406,-452,-375]} 1. g3 {[%emt 0:00:00]} d5 {[%emt 0:00:00]} 2. Nf3 {[%emt 0:00:00]} Nf6 {[%emt 0:00:08]} 3. Bg2 {[%emt 0:00:00]} Bf5 {[%emt 0:00:37]} 4. O-O {[%emt 0:00:00]} e6 {[%emt 0:00:16]} 5. c4 {[%emt 0:00:22]} c6 {[%emt 0:04:15]} 6. d3 {[%emt 0:00:15]} dxc4 {[%emt 0:00:22]} 7. dxc4 {[%emt 0:00:15]} Nbd7 {[%emt 0:00:04] A11: English Opening: 1...c6} (7... Qxd1 8. Rxd1 Bc2 9. Rf1 Nbd7 10. Nc3 Bb4 11. Bd2 a5 12. a3 Bxc3 13. Bxc3 a4 14. Rac1 Be4 15. Rfd1 {0-1 (86) Carlsen,M (2832)-Grischuk,A (2761) Paris 2017}) 8. Nc3 {[%emt 0:02:37]} e5 {[%emt 0:11:58]} 9. Re1 {[%emt 0:08:44]} Be7 {[%emt 0:09:39]} 10. e4 {[%emt 0:00:47]} Be6 $146 {[%emt 0:03:25]} ({Predecessor:} 10... Bg6 11. h3 Qc7 12. Qc2 O-O 13. Nh4 Nh5 14. Nf5 Nc5 15. Be3 b6 {1-0 (27) Kravec,P (2034)-Prielozny,E (1897) Slovakia 2016}) 11. Qe2 {[%emt 0:01:47]} h6 {[%emt 0:08:20]} 12. h3 {[%emt 0:00:05]} Qc7 {[%emt 0:02:25] [#]} 13. Be3 {[%emt 0:00:35]} (13. Nd5 $1 $16 {[%cal Rd5c7]} cxd5 14. cxd5) 13... O-O {[%emt 0:05:18]} 14. Rac1 {[%emt 0:00:17]} Rfd8 {[%emt 0:10:22]} 15. Red1 {[%emt 0:03:43]} (15. Nd5 $5 cxd5 16. cxd5 $14) 15... Nc5 {[%emt 0:10:10]} (15... Qa5 $11) 16. Nd5 $1 {[%emt 0:08:10]} cxd5 {[%emt 0:06:02]} 17. cxd5 {[%emt 0:00:10]} Bd7 {[%emt 0:07:32]} 18. b4 {[%emt 0:00:36]} b6 {[%emt 0:01:42]} 19. bxc5 {[%emt 0:00:23]} bxc5 {[%emt 0:01:17]} 20. Nd2 {[%emt 0:14:48]} Ne8 {[%emt 0:04:12]} 21. Nb3 {[%emt 0:03:14]} Ba4 {[%emt 0:01:40]} 22. Bxc5 {[%emt 0:10:26]} (22. Qa6 $16 Bxb3 23. axb3) 22... Bxb3 $1 {[%emt 0:02:43]} 23. Bxe7 $2 {[%emt 0:00:09]} (23. axb3 $11 {and White stays safe.} Bxc5 {[#]} 24. b4 $1 {[%mdl 512]} Bxf2+ 25. Qxf2) 23... Bxd1 {[%emt 0:00:35]} 24. Rxc7 {[%emt 0:08:30]} Bxe2 {[%emt 0:00:22]} 25. Rc2 {[%emt 0:01:11]} Rd7 {[%emt 0:01:35]} 26. Ba3 {[%emt 0:00:50]} Bb5 {[%emt 0:01:17]} 27. Bb2 {[%emt 0:01:48]} f6 {[%emt 0:01:46]} 28. f4 {[%emt 0:00:06]} exf4 {[%emt 0:00:40]} 29. gxf4 {[%emt 0:00:06]} Rc7 $19 {[%emt 0:00:56]} 30. Rf2 {[%emt 0:11:11]} Rac8 {[%emt 0:02:25]} 31. Rf3 {[%emt 0:00:38]} Rc2 {[%emt 0:00:54]} 32. Rb3 {[%emt 0:02:10]} Bc4 {[%emt 0:00:32]} 33. Rb7 {[%emt 0:01:19]} Bxa2 {[%emt 0:00:31]} 34. e5 {[%emt 0:00:09]} Rxg2+ {[%emt 0:00:18]} 0-1

[Event "FIDE Zonal 2.5 Open 2019"]
[Site "Montevideo"]
[Date "2019.04.16"]
[Round "6.24"]
[White "Pena Canapa, Alfredo"]
[Black "Ramirez Dominguez, Agustin"]
[Result "1-0"]
[ECO "E71"]
[WhiteElo "1811"]
[BlackElo "1907"]
[Annotator "NA RC"]
[PlyCount "103"]
[EventDate "2019.04.13"]
[EventType "swiss"]
[EventCountry "URU"]
[SourceTitle "playchess.com"]
[Source "ChessBase"]
[SourceQuality "1"]
[TimeControl "40/5400+30:1800+30"]

{[%evp 8,103,45,35,48,37,32767,32767,32767,32767,78,32767,32767,32767,32767,32767,53,27,54,-14,0,20,28,41,32767,85,111,125,139,133,163,173,222,181,154,133,160,157,306,322,366,32767,32767,32767,32767,32767,402,32767,225,32767,325,32767,32767,32767,32767,32767,254,265,255,257,267,32767,396,360,32767,32767,32767,32767,252,240,240,32767,243,254,32767,32767,32767,32767,461,450,438,728,1004,1857,1015,1540,1806,2325,1954,11022,12823,29977,29983,1635,29981,29983,32767,29978]} 1. d4 {[%emt 0:00:00]} Nf6 {[%emt 0:00:00]} 2. c4 {[%emt 0:00:00]} g6 {[%emt 0:00:38]} 3. Nc3 {[%emt 0:00:00]} Bg7 {[%emt 0:00:41]} 4. e4 {[%emt 0:00:05]} d6 {[%emt 0:00:04]} 5. h3 {[%emt 0:00:08]} O-O {[%emt 0:00:34]} 6. Be3 {[%emt 0:00:07]} e5 {[%emt 0:01:01]} 7. d5 {[%emt 0:00:07]} c5 {[%emt 0:01:08] E71: King's Indian: 4 e4 d6 5 h3} (7... a5 8. g4 Na6 9. Nge2 Nd7 10. Qd2 Ndc5 11. Ng3 c6 12. Be2 cxd5 13. cxd5 a4 14. h4 Bd7 15. h5 Rc8 {0-1 (39) Caruana,F (2832)-Nakamura,H (2746) London 2018}) 8. Be2 {[%emt 0:04:31]} Ne8 {[%emt 0:05:43]} 9. Nf3 {[%emt 0:00:43]} f5 {[%emt 0:00:32]} 10. Qc2 $146 {[%emt 0:01:19]} ({Predecessor:} 10. Qb3 f4 11. Bd2 Nd7 12. O-O-O a6 13. Rdg1 Ndf6 14. Bd3 Rf7 15. Ng5 {0-1 (38) Kabai,Z (1856)-Feher,L (1867) Budapest 2007}) 10... Nc7 {[%emt 0:01:08]} 11. Bd3 {[%emt 0:03:38]} a6 {[%emt 0:04:57]} 12. a4 {[%emt 0:00:13]} a5 {[%emt 0:00:09]} 13. O-O-O {[%emt 0:05:15]} (13. exf5 $14 gxf5 14. Bg5) 13... Nba6 {[%emt 0:02:46]} 14. Qe2 {[%emt 0:00:42]} Nb4 {[%emt 0:01:35]} 15. Bb1 {[%emt 0:00:06]} fxe4 {[%emt 0:00:31]} 16. Bxe4 {[%emt 0:00:50]} Bf5 {[%emt 0:00:17]} 17. Nd2 {[%emt 0:02:22]} Qd7 {[%emt 0:01:45]} 18. b3 {[%emt 0:00:33]} Bxe4 {[%emt 0:12:12]} 19. Ndxe4 {[%emt 0:00:27]} Rad8 {[%emt 0:01:03]} (19... Ne8 {was worth a try.} 20. Qg4 Rf5) 20. Qg4 {[%emt 0:04:30]} Qf5 {[%emt 0:07:58]} 21. f3 {[%emt 0:03:25]} Rf7 {[%emt 0:04:25]} 22. Rd2 {[%emt 0:03:20]} h6 {[%emt 0:07:55]} (22... Rfd7 $16 23. Kb1 Ra8) 23. Qh4 {[%emt 0:01:05]} g5 {[%emt 0:01:20]} 24. Qg3 {[%emt 0:05:38]} Bf6 {[%emt 0:17:38]} 25. Nxf6+ {[%emt 0:05:44]} Rxf6 {[%emt 0:00:51]} 26. Ne4 {[%emt 0:00:10]} Rg6 {[%emt 0:00:24]} 27. Qg4 {[%emt 0:00:25]} Qxg4 {[%emt 0:04:00]} 28. hxg4 {[%emt 0:00:17]} Rf8 {[%emt 0:02:15]} 29. Ng3 {[%emt 0:02:32]} Ne8 {[%emt 0:01:57]} 30. Nf5 {[%emt 0:00:17]} Kh7 {[%emt 0:00:34]} 31. Rdd1 {[%emt 0:06:18]} Ng7 {[%emt 0:12:47]} 32. Ne7 {[%emt 0:03:08]} Re8 {[%emt 0:00:15]} 33. Nxg6 {[%emt 0:00:17]} Kxg6 {[%emt 0:00:09]} 34. Kd2 {[%emt 0:01:04]} Na6 {[%emt 0:01:16]} (34... Re7 $142 35. Rh2 Ne8) 35. Rh3 {[%emt 0:04:48]} Nc7 {[%emt 0:00:53]} 36. Rdh1 {[%emt 0:00:41]} Rh8 {[%emt 0:00:34]} 37. Kd3 {[%emt 0:00:00]} Nce8 {[%emt 0:00:30]} 38. Bd2 {[%emt 0:01:21]} b6 {[%emt 0:00:37]} 39. g3 {[%emt 0:00:57]} Nf6 {[%emt 0:01:04]} 40. Ke2 {[%emt 0:03:28]} h5 {[%emt 0:05:13]} 41. gxh5+ {[%emt 0:50:21]} Ngxh5 {[%emt 0:00:56]} 42. Ke1 {[%emt 0:00:00]} Rh7 {[%emt 0:03:55]} 43. g4 {[%emt 0:00:00]} Nf4 {[%emt 0:01:17]} 44. Bxf4 {[%emt 0:00:00]} exf4 {[%emt 0:00:12]} 45. Rxh7 {[%emt 0:00:00]} Nxh7 46. Kd2 {[%emt 0:00:00]} Nf8 {[%emt 0:01:55]} 47. Kd3 {[%emt 0:00:00]} Nh7 {[%emt 0:00:36]} 48. Re1 {[%emt 0:00:00]} Nf8 {[%emt 0:01:29]} 49. Re8 {[%emt 0:00:00]} Kf7 {[%emt 0:00:26] [#]} 50. Rb8 $18 {[%emt 0:00:00]} (50. Rxf8+ $142 $1 {[%mdl 512]} Kxf8 51. Ke4 Kg7 52. Kf5 Kf7 53. Kxg5 Kg7 54. Kf5 Kf7 55. g5) 50... Nd7 {[%emt 0:00:23]} 51. Rb7 {[%emt 0:00:00]} Ke8 {[%emt 0:00:01]} 52. Ke4 {[%emt 0:00:00]} 1-0

[Event "FIDE Zonal 2.5 Open 2019"]
[Site "Montevideo"]
[Date "2019.04.16"]
[Round "6.25"]
[White "Reolon, Victor"]
[Black "Romero, Robert"]
[Result "0-1"]
[ECO "D45"]
[WhiteElo "1659"]
[BlackElo "1599"]
[Annotator "NA RC"]
[PlyCount "76"]
[EventDate "2019.04.13"]
[EventType "swiss"]
[EventCountry "URU"]
[SourceTitle "playchess.com"]
[Source "ChessBase"]
[SourceQuality "1"]
[TimeControl "40/5400+30:1800+30"]

1. d4 {[%emt 0:00:00]} Nf6 {[%emt 0:00:00]} 2. c4 {[%emt 0:00:00]} e6 {[%emt 0:00:00]} 3. Nc3 {[%emt 0:00:00]} d5 {[%emt 0:00:03]} 4. Nf3 {[%emt 0:00:22]} c6 {[%emt 0:01:14]} 5. e3 {[%emt 0:02:34]} Be7 {[%emt 0:01:17]} 6. a3 {[%emt 0:01:22]} O-O {[%emt 0:00:14]} 7. Bd3 {[%emt 0:00:23]} dxc4 {[%emt 0:01:23]} 8. Bxc4 {[%emt 0:00:06]} Nbd7 {[%emt 0:03:18]} 9. O-O {[%emt 0:04:44]} Nb6 {[%emt 0:00:49]} 10. Bd3 Nbd5 {[%emt 0:00:27]} 11. e4 {[%emt 0:03:57]} Nxc3 {[%emt 0:01:33]} 12. bxc3 {[%emt 0:00:06]} c5 {[%emt 0:06:26]} 13. Qe2 {[%emt 0:10:07]} b6 {[%emt 0:04:30]} 14. e5 {[%emt 0:19:07]} Nd5 {[%emt 0:01:25]} 15. c4 {[%emt 0:03:49]} Nc7 {[%emt 0:09:45]} 16. dxc5 {[%emt 0:06:00]} Bxc5 {[%emt 0:01:20]} 17. Qe4 {[%emt 0:05:17]} g6 {[%emt 0:02:03]} 18. Bh6 {[%emt 0:03:05]} Re8 {[%emt 0:00:23]} 19. Rfd1 {[%emt 0:05:31]} Rb8 {[%emt 0:12:39]} 20. Qg4 {[%emt 0:01:22]} Qe7 {[%emt 0:06:03]} 21. Bg5 {[%emt 0:01:24]} Qf8 {[%emt 0:00:34]} 22. Bf6 {[%emt 0:04:47]} Be7 {[%emt 0:01:06]} 23. h4 {[%emt 0:06:51]} Bxf6 {[%emt 0:00:47]} 24. exf6 {[%emt 0:00:09]} e5 {[%emt 0:00:23]} 25. Qg5 {[%emt 0:02:04]} e4 {[%emt 0:00:34]} 26. Qf4 {[%emt 0:02:50]} exf3 {[%emt 0:06:32]} 27. Qxc7 {[%emt 0:01:10]} Rb7 {[%emt 0:00:18]} 28. Qg3 {[%emt 0:00:45]} fxg2 {[%emt 0:00:21]} 29. Qxg2 {[%emt 0:02:01]} h5 {[%emt 0:01:01]} 30. Be4 {[%emt 0:01:08]} Rc7 {[%emt 0:01:23]} 31. Rd3 {[%emt 0:06:34]} Rxc4 {[%emt 0:01:33]} 32. Bd5 {[%emt 0:01:22]} Rg4 {[%emt 0:01:28]} 33. Rg3 {[%emt 0:00:02]} Qd6 {[%emt 0:02:10]} 34. Rd1 {[%emt 0:03:07]} Qxf6 {[%emt 0:00:38]} 35. Bf3 {[%emt 0:01:58]} Rxh4 {[%emt 0:02:05]} 36. Rg5 {[%emt 0:01:22]} Bg4 {[%emt 0:03:53]} 37. Bc6 Bxd1 {[%emt 0:08:46]} 38. Bxe8 {[%emt 0:02:36]} Bf3 {[%emt 0:00:30]} 0-1